[Event "Championnat du monde jeunes U10"]
[Date "2024.11.26"]
[White "Hochman, Gur"]
[Black "Aguike, Toshiya"]
[WhiteElo "1626"]
[BlackElo "1716"]
[Round "11.6"]
[Result "1/2-1/2"]
[TimeControl "5400+30"]

1. e4 {[%clk 1:30:58]} 1... e5 {[%clk 1:30:53]} 2. Nc3 {[%clk 1:31:21]} 2... Nf6
{[%clk 1:31:17]} 3. f4 {[%clk 1:31:45]} 3... d5 {[%clk 1:31:10]} 4. fxe5 {[%clk
1:32:09]} 4... Nxe4 {[%clk 1:31:30]} 5. Qf3 {[%clk 1:32:30]} 5... f5 {[%clk
1:30:50]} 6. d3 {[%clk 1:32:54]} 6... Nxc3 {[%clk 1:31:10]} 7. bxc3 {[%clk
1:33:17]} 7... d4 {[%clk 1:31:29]} 8. Qg3 {[%clk 1:33:34]} 8... Nc6 {[%clk
1:29:44]} 9. Be2 {[%clk 1:33:58]} 9... Qd5 10. Bf4 {[%clk 1:32:38]} 10... dxc3
{[%clk 1:25:51]} 11. Bf3 {[%clk 1:32:23]} 11... Qe6 {[%clk 1:25:26]} 12. Ne2
{[%clk 1:31:32]} 12... Bc5 {[%clk 1:22:30]} 13. d4 {[%clk 1:26:18]} 13... Nxd4
{[%clk 1:01:15]} 14. Nxd4 {[%clk 1:26:32]} 14... Qf7 {[%clk 1:01:39]} 15. Nb3
{[%clk 1:23:59]} 15... Bb6 {[%clk 1:01:35]} 16. Rd1 {[%clk 1:23:12]} 16... c6
{[%clk 1:00:51]} 17. Be2 {[%clk 1:18:02]} 17... a5 {[%clk 0:56:13]} 18. a4
{[%clk 1:12:57]} 18... Be6 {[%clk 0:56:02]} 19. Nd4 {[%clk 1:12:15]} 19... O-O-O
{[%clk 0:54:08]} 20. Qxc3 {[%clk 1:06:57]} 20... Qg6 {[%clk 0:52:02]} 21. Bf3
{[%clk 0:59:59]} 21... Bd5 {[%clk 0:49:57]} 22. Nb5 {[%clk 0:48:16]} 22... Bxf3
{[%clk 0:50:04]} 23. Rxd8+ {[%clk 0:47:28]} 23... Rxd8 {[%clk 0:49:20]} 24. gxf3
{[%clk 0:46:23]} 24... Qg2 {[%clk 0:49:33]} 25. Rf1 {[%clk 0:44:18]} 25... Rd1+
{[%clk 0:43:14]} 26. Kxd1 {[%clk 0:43:57]} 26... Qxf1+ {[%clk 0:43:22]} 27. Kd2
{[%clk 0:44:10]} 27... Bf2 {[%clk 0:42:22]} 28. Nd6+ {[%clk 0:43:02]} 28... Kb8
{[%clk 0:41:23]} 29. Bg3 {[%clk 0:41:26]} 29... Qe1+ {[%clk 0:40:48]} 30. Kd3
Qd1+ {[%clk 0:38:08]} 31. Qd2 {[%clk 0:42:01]} 31... Qxf3+ {[%clk 0:38:08]} 32.
Kc4 {[%clk 0:42:20]} 32... Qg4+ {[%clk 0:37:41]} 33. Qf4 {[%clk 0:39:22]} 33...
Qe2+ {[%clk 0:35:16]} 34. Kb3 {[%clk 0:39:33]} 34... Bxg3 {[%clk 0:33:11]} 35.
Qxg3 {[%clk 0:37:29]} 35... g6 {[%clk 0:31:58]} 36. Nf7 {[%clk 0:26:05]} 36...
Qe4 {[%clk 0:28:45]} 37. e6+ {[%clk 0:25:58]} 37... f4 {[%clk 0:29:00]} 38. Qd3
{[%clk 0:13:50]} 38... Qxe6+ {[%clk 0:27:22]} 39. c4 {[%clk 0:12:48]} 39... Qxf7
{[%clk 0:18:11]} 40. Qd8+ {[%clk 0:13:06]} 1/2-1/2

[Variant "Standard"]
[Site "Europe Echecs"]

[Event "Championnat du monde jeunes U10"]
[Date "2024.11.26"]
[White "Radiukevich, Viacheslau"]
[Black "Schettini Acuna, Massimo Matteo"]
[WhiteElo "1484"]
[BlackElo "1703"]
[Round "11.8"]
[Result "1/2-1/2"]
[TimeControl "5400+30"]

1. e4 {[%clk 1:30:49]} 1... e5 {[%clk 1:30:48]} 2. Nf3 {[%clk 1:31:03]} 2... Nc6
{[%clk 1:31:10]} 3. Bc4 {[%clk 1:31:24]} 3... Nf6 {[%clk 1:31:27]} 4. Nc3 {[%clk
1:31:49]} 4... Bc5 {[%clk 1:31:24]} 5. d3 {[%clk 1:32:14]} 5... h6 {[%clk
1:31:00]} 6. Be3 {[%clk 1:32:21]} 6... Bb6 {[%clk 1:31:12]} 7. Qd2 {[%clk
1:32:45]} 7... d6 {[%clk 1:31:24]} 8. h3 {[%clk 1:32:49]} 8... Qe7 {[%clk
1:28:19]} 9. Nd5 {[%clk 1:30:54]} 9... Nxd5 {[%clk 1:22:54]} 10. Bxd5 {[%clk
1:30:55]} 10... Be6 {[%clk 1:22:16]} 11. Bxc6+ {[%clk 1:28:57]} 11... bxc6
{[%clk 1:22:26]} 12. O-O {[%clk 1:24:12]} 12... Qf6 {[%clk 1:20:01]} 13. Bxb6
{[%clk 1:17:37]} 13... cxb6 {[%clk 1:16:59]} 14. Qe3 {[%clk 1:17:28]} 14... c5
{[%clk 1:16:02]} 15. c3 {[%clk 1:17:16]} 15... O-O {[%clk 1:13:04]} 16. Rfd1
{[%clk 1:15:49]} 16... Rfd8 {[%clk 1:11:26]} 17. d4 {[%clk 1:11:06]} 17... Rac8
{[%clk 1:08:46]} 18. d5 {[%clk 1:11:22]} 18... Bd7 {[%clk 1:08:59]} 19. c4
{[%clk 1:11:41]} 19... Qg6 {[%clk 1:08:39]} 20. Rf1 {[%clk 1:03:04]} 20... Rf8
{[%clk 1:05:06]} 21. g4 {[%clk 0:55:06]} 21... f6 {[%clk 0:53:20]} 22. Nh4
{[%clk 0:55:03]} 22... Qh7 {[%clk 0:52:28]} 23. Nf5 {[%clk 0:54:42]} 23... Bxf5
{[%clk 0:52:18]} 24. gxf5 {[%clk 0:54:58]} 24... Kf7 {[%clk 0:51:54]} 25. Kh2
{[%clk 0:54:29]} 25... Rg8 {[%clk 0:51:03]} 26. Rg1 {[%clk 0:54:43]} 26... g5
{[%clk 0:46:27]} 27. fxg6+ {[%clk 0:54:06]} 27... Rxg6 {[%clk 0:46:48]} 28. Rxg6
{[%clk 0:54:23]} 28... Qxg6 {[%clk 0:47:10]} 29. Rg1 {[%clk 0:54:48]} 29... Qh7
{[%clk 0:47:17]} 30. Qg3 {[%clk 0:54:20]} 30... Rg8 {[%clk 0:44:59]} 31. Qxg8+
{[%clk 0:53:37]} 31... Qxg8 {[%clk 0:45:22]} 32. Rxg8 {[%clk 0:54:00]} 32...
Kxg8 {[%clk 0:45:47]} 33. Kg3 {[%clk 0:53:24]} 33... Kf7 {[%clk 0:46:06]} 34. f4
{[%clk 0:50:29]} 34... h5 {[%clk 0:42:20]} 35. f5 {[%clk 0:49:38]} 35... Kg7
{[%clk 0:42:26]} 36. h4 {[%clk 0:49:24]} 1/2-1/2

[Variant "Standard"]
[Site "Europe Echecs"]

[Event "Championnat du monde jeunes U10"]
[Date "2024.11.26"]
[White "Lenkov, Stanislav"]
[Black "Chen, Pin-Jui"]
[WhiteElo "1693"]
[BlackElo "1505"]
[Round "11.9"]
[Result "1-0"]
[TimeControl "5400+30"]

1. e4 {[%clk 1:30:30]} 1... e5 {[%clk 1:30:53]} 2. Nf3 {[%clk 1:30:30]} 2... Nc6
{[%clk 1:31:15]} 3. Bb5 {[%clk 1:30:30]} 3... a6 {[%clk 1:31:20]} 4. Ba4 {[%clk
1:30:27]} 4... Nf6 {[%clk 1:31:15]} 5. d3 {[%clk 1:30:10]} 5... b5 {[%clk
1:31:30]} 6. Bb3 {[%clk 1:30:02]} 6... Bc5 {[%clk 1:31:50]} 7. c3 {[%clk
1:26:35]} 7... d6 {[%clk 1:31:02]} 8. h3 {[%clk 1:26:31]} 8... O-O {[%clk
1:29:26]} 9. O-O {[%clk 1:25:09]} 9... h6 {[%clk 1:28:16]} 10. Re1 {[%clk
1:23:04]} 10... Re8 {[%clk 1:27:37]} 11. Nbd2 {[%clk 1:07:39]} 11... Bb7 {[%clk
1:08:01]} 12. Nf1 {[%clk 1:05:39]} 12... d5 {[%clk 0:49:28]} 13. exd5 {[%clk
1:02:35]} 13... Nxd5 {[%clk 0:49:41]} 14. d4 {[%clk 1:02:46]} 14... Bb6 {[%clk
0:43:16]} 15. Nxe5 {[%clk 0:58:25]} 15... Qd6 {[%clk 0:26:46]} 16. Nxf7 {[%clk
0:53:11]} 16... Kxf7 {[%clk 0:20:20]} 17. Qh5+ {[%clk 0:51:56]} 17... Kf8 {[%clk
0:19:33]} 18. Bxd5 {[%clk 0:50:49]} 18... Qf6 {[%clk 0:18:46]} 19. Bg5 {[%clk
0:50:58]} 19... Qf5 {[%clk 0:18:06]} 20. Ne3 {[%clk 0:51:00]} 20... Rxe3 {[%clk
0:18:03]} 21. Rxe3 {[%clk 0:49:29]} 21... Qxd5 {[%clk 0:17:54]} 22. Rae1 {[%clk
0:48:46]} 22... Ne5 {[%clk 0:14:06]} 23. Be7+ {[%clk 0:48:09]} 23... Kg8 {[%clk
0:14:21]} 24. Rg3 {[%clk 0:44:35]} 24... Nd7 {[%clk 0:11:51]} 25. Qg4 {[%clk
0:39:59]} 25... g5 {[%clk 0:09:22]} 26. Qh5 {[%clk 0:38:52]} 26... Qc6 {[%clk
0:08:48]} 27. Bxg5 {[%clk 0:38:48]} 1-0

[Variant "Standard"]
[Site "Europe Echecs"]

[Event "Championnat du monde jeunes U10"]
[Date "2024.11.26"]
[White "Prokhorov, Makar"]
[Black "Roth, Elai"]
[WhiteElo "1771"]
[BlackElo "1577"]
[Round "11.10"]
[Result "0-1"]
[TimeControl "5400+30"]

1. e4 {[%clk 1:30:59]} 1... c5 {[%clk 1:30:53]} 2. Nf3 {[%clk 1:31:24]} 2... e6
{[%clk 1:31:20]} 3. d4 {[%clk 1:31:40]} 3... cxd4 {[%clk 1:31:48]} 4. Nxd4
{[%clk 1:31:52]} 4... Nf6 {[%clk 1:32:11]} 5. Nc3 {[%clk 1:32:11]} 5... Nc6
{[%clk 1:32:37]} 6. Ndb5 {[%clk 1:32:23]} 6... Bb4 {[%clk 1:32:39]} 7. a3 {[%clk
1:32:37]} 7... Bxc3+ {[%clk 1:32:57]} 8. Nxc3 {[%clk 1:32:55]} 8... d5 {[%clk
1:33:21]} 9. Bd3 {[%clk 1:33:06]} 9... O-O {[%clk 1:26:07]} 10. O-O {[%clk
1:33:10]} 10... h6 {[%clk 1:23:04]} 11. h3 {[%clk 1:29:06]} 11... b6 {[%clk
1:19:19]} 12. f4 {[%clk 1:24:00]} 12... dxe4 {[%clk 1:16:07]} 13. Bxe4 {[%clk
1:23:38]} 13... Bb7 {[%clk 1:13:27]} 14. Qxd8 {[%clk 1:11:10]} 14... Rfxd8
{[%clk 1:13:40]} 15. Be3 {[%clk 1:11:20]} 15... Nxe4 {[%clk 1:13:44]} 16. Nxe4
{[%clk 1:11:40]} 16... Nd4 {[%clk 1:13:20]} 17. Bxd4 {[%clk 1:11:37]} 17... Bxe4
{[%clk 1:13:20]} 18. c3 {[%clk 1:11:54]} 18... Rd5 {[%clk 1:12:48]} 19. Rad1
{[%clk 1:11:55]} 19... Rad8 {[%clk 1:12:32]} 20. Rfe1 {[%clk 1:12:10]} 20... f5
{[%clk 1:12:05]} 21. Re3 {[%clk 1:12:28]} 21... g5 {[%clk 0:56:53]} 22. g3
{[%clk 1:10:34]} 22... Kh7 {[%clk 0:54:20]} 23. Kf2 {[%clk 1:10:36]} 23... Rg8
{[%clk 0:38:30]} 24. Rg1 {[%clk 1:03:42]} 24... h5 {[%clk 0:32:19]} 25. Ree1
{[%clk 0:56:39]} 25... g4 {[%clk 0:24:33]} 26. h4 {[%clk 0:55:48]} 26... Rc8
{[%clk 0:20:25]} 27. Re3 {[%clk 0:55:16]} 27... Rc7 {[%clk 0:18:21]} 28. Ke2
{[%clk 0:50:53]} 28... b5 {[%clk 0:18:10]} 29. Kd2 {[%clk 0:51:17]} 29... a5
{[%clk 0:18:12]} 30. Ra1 {[%clk 0:50:51]} 30... a4 {[%clk 0:14:46]} 31. Ke1
{[%clk 0:50:20]} 31... Rcd7 {[%clk 0:14:57]} 32. Re2 {[%clk 0:47:57]} 32... Kg8
{[%clk 0:12:36]} 33. Re3 {[%clk 0:46:13]} 33... Kh7 {[%clk 0:11:57]} 34. Rd1
{[%clk 0:46:25]} 34... Kg8 {[%clk 0:11:20]} 35. Rd2 {[%clk 0:46:55]} 35... Kh7
{[%clk 0:11:32]} 36. Ree2 {[%clk 0:47:24]} 36... Kg8 {[%clk 0:11:23]} 37. Be5
{[%clk 0:47:32]} 37... Rd3 {[%clk 0:10:30]} 38. Bf6 {[%clk 0:39:36]} 38... R7d5
{[%clk 0:10:40]} 39. Rxd3 {[%clk 0:24:51]} 39... Rxd3 {[%clk 0:11:03]} 40. Bd4
{[%clk 0:24:39]} 40... Rxg3 {[%clk 0:10:13]} 41. Rf2 {[%clk 0:19:35]} 41... Rh3
{[%clk 0:10:21]} 42. Bf6 {[%clk 0:19:43]} 42... g3 {[%clk 0:10:17]} 43. Rf1
{[%clk 0:18:52]} 43... Kf7 {[%clk 0:10:03]} 44. Bg5 {[%clk 0:19:03]} 44... g2
{[%clk 0:09:55]} 45. Rg1 {[%clk 0:19:29]} 45... Rh1 {[%clk 0:09:27]} 46. Kf2
{[%clk 0:19:54]} 46... Kg6 {[%clk 0:09:29]} 47. Be7 {[%clk 0:19:27]} 47... Kf7
{[%clk 0:09:30]} 48. Bd8 {[%clk 0:19:43]} 48... Ke8 {[%clk 0:09:47]} 49. Bg5
{[%clk 0:20:06]} 49... Kd7 {[%clk 0:10:03]} 50. Bf6 {[%clk 0:20:31]} 50... Kc6
{[%clk 0:10:21]} 51. Bd8 {[%clk 0:20:44]} 51... Kd5 {[%clk 0:10:33]} 52. Bg5
{[%clk 0:21:07]} 52... Kc4 {[%clk 0:10:53]} 53. Bd8 {[%clk 0:21:07]} 53... Kb3
{[%clk 0:11:13]} 54. Bf6 {[%clk 0:21:33]} 54... Kc2 {[%clk 0:11:19]} 55. Bg5
{[%clk 0:18:57]} 55... Kxb2 {[%clk 0:11:29]} 56. Be7 {[%clk 0:19:07]} 56... Kxc3
{[%clk 0:11:44]} 57. Bb4+ {[%clk 0:19:35]} 57... Kc4 {[%clk 0:11:36]} 58. Be7
{[%clk 0:12:12]} 58... Kb3 {[%clk 0:11:55]} 59. Rxg2 {[%clk 0:12:15]} 59... Bxg2
{[%clk 0:12:19]} 60. Kxg2 {[%clk 0:12:42]} 60... Ra1 {[%clk 0:12:39]} 61. Kf3
{[%clk 0:12:17]} 61... Rxa3 {[%clk 0:12:55]} 62. Bxa3 {[%clk 0:12:42]} 62...
Kxa3 {[%clk 0:13:19]} 63. Ke3 {[%clk 0:13:12]} 63... Kb2 {[%clk 0:13:41]} 64.
Kd4 {[%clk 0:13:31]} 64... a3 {[%clk 0:14:04]} 65. Ke5 {[%clk 0:13:57]} 65... a2
{[%clk 0:14:29]} 66. Kxe6 {[%clk 0:14:00]} 66... a1=Q {[%clk 0:14:50]} 67. Kxf5
{[%clk 0:14:12]} 67... b4 {[%clk 0:15:07]} 68. Kg5 {[%clk 0:14:06]} 68... Qa5+
{[%clk 0:15:21]} 69. f5 {[%clk 0:14:32]} 69... b3 {[%clk 0:15:36]} 70. Kg6
{[%clk 0:14:56]} 70... Kc3 {[%clk 0:15:55]} 71. f6 {[%clk 0:15:22]} 71... b2
{[%clk 0:16:17]} 72. f7 {[%clk 0:15:52]} 72... b1=Q+ {[%clk 0:16:37]} 73. Kg7
{[%clk 0:16:14]} 73... Qe5+ {[%clk 0:16:54]} 74. Kg8 {[%clk 0:16:29]} 74... Qb3
{[%clk 0:16:58]} 75. Kf8 {[%clk 0:16:25]} 75... Qbb8# {[%clk 0:17:16]} 0-1

[Variant "Standard"]
[Site "Europe Echecs"]

[Event "Championnat du monde jeunes U10"]
[Date "2024.11.26"]
[White "Sander, Tino"]
[Black "Wang, Yuwei"]
[WhiteElo "1736"]
[BlackElo "1576"]
[Round "11.11"]
[Result "1/2-1/2"]
[TimeControl "5400+30"]

1. e4 {[%clk 1:30:58]} 1... c5 {[%clk 1:30:57]} 2. Nf3 {[%clk 1:31:24]} 2... Nc6
{[%clk 1:31:22]} 3. d4 {[%clk 1:31:50]} 3... cxd4 {[%clk 1:31:47]} 4. Nxd4
{[%clk 1:32:10]} 4... Nf6 {[%clk 1:32:13]} 5. Nc3 {[%clk 1:32:29]} 5... e6
{[%clk 1:32:40]} 6. Ndb5 {[%clk 1:32:50]} 6... Bb4 {[%clk 1:33:03]} 7. a3 {[%clk
1:33:09]} 7... Bxc3+ {[%clk 1:33:30]} 8. Nxc3 {[%clk 1:33:32]} 8... d5 {[%clk
1:33:54]} 9. exd5 {[%clk 1:33:54]} 9... exd5 {[%clk 1:34:16]} 10. Bd3 {[%clk
1:34:15]} 10... Be6 {[%clk 1:34:39]} 11. Bg5 {[%clk 1:29:45]} 11... h6 {[%clk
1:31:16]} 12. Bh4 {[%clk 1:29:38]} 12... O-O {[%clk 1:29:21]} 13. O-O {[%clk
1:29:41]} 13... Qe7 {[%clk 1:26:46]} 14. Re1 {[%clk 1:28:39]} 14... Rfd8 {[%clk
1:26:57]} 15. Qf3 {[%clk 1:27:34]} 15... g5 {[%clk 1:21:55]} 16. Bg3 {[%clk
1:24:45]} 16... Kg7 17. b4 {[%clk 1:04:24]} 17... Rac8 {[%clk 1:06:28]} 18. b5
{[%clk 0:52:59]} 18... Nd4 {[%clk 1:05:04]} 19. Qe3 {[%clk 0:52:39]} 19... Nxc2
{[%clk 1:05:08]} 20. Bxc2 {[%clk 0:49:22]} 20... d4 {[%clk 1:03:32]} 21. Qe2
{[%clk 0:41:32]} 21... Rxc3 {[%clk 1:02:52]} 22. Bf5 {[%clk 0:41:24]} 22... Rxa3
{[%clk 0:59:10]} 23. Bxe6 {[%clk 0:36:34]} 23... fxe6 {[%clk 0:54:50]} 24. Be5
{[%clk 0:31:01]} 24... Rxa1 {[%clk 0:54:51]} 25. Rxa1 {[%clk 0:31:26]} 25... d3
{[%clk 0:54:39]} 26. Qf3 {[%clk 0:31:16]} 26... Rd5 {[%clk 0:48:43]} 27. Qe3
{[%clk 0:15:30]} 27... Qc5 {[%clk 0:32:28]} 28. Qxc5 {[%clk 0:09:13]} 28... Rxc5
{[%clk 0:32:53]} 29. Bd4 {[%clk 0:09:04]} 29... Rd5 {[%clk 0:32:20]} 30. Bxa7
{[%clk 0:08:10]} 30... d2 {[%clk 0:32:49]} 31. Rd1 {[%clk 0:08:25]} 31... Ne4
{[%clk 0:33:10]} 32. Be3 {[%clk 0:08:42]} 32... Rxb5 {[%clk 0:30:32]} 33. f3
{[%clk 0:08:14]} 33... Nd6 {[%clk 0:25:21]} 34. Bxd2 {[%clk 0:07:46]} 34... Rd5
{[%clk 0:24:28]} 35. Bc3+ {[%clk 0:07:47]} 35... Kg6 {[%clk 0:24:44]} 36. Rxd5
{[%clk 0:07:39]} 36... exd5 {[%clk 0:25:10]} 37. Kf2 {[%clk 0:07:44]} 37... Nb5
{[%clk 0:24:07]} 38. Bb2 {[%clk 0:08:05]} 38... d4 {[%clk 0:23:17]} 39. Ke2
{[%clk 0:08:17]} 39... Kf5 {[%clk 0:23:44]} 40. Kd3 {[%clk 0:08:02]} 40... Ke5
{[%clk 0:24:06]} 41. Kc4 {[%clk 0:05:38]} 41... Nd6+ {[%clk 0:24:31]} 42. Kd3
Nb5 {[%clk 0:22:29]} 43. Bc1 {[%clk 0:05:12]} 43... Nc3 {[%clk 0:21:10]} 44. h4
{[%clk 0:05:01]} 44... Kf5 {[%clk 0:21:16]} 45. hxg5 {[%clk 0:03:49]} 45... hxg5
{[%clk 0:21:42]} 46. Bd2 {[%clk 0:03:53]} 46... g4 {[%clk 0:15:51]} 47. Bxc3
{[%clk 0:02:08]} 47... dxc3 {[%clk 0:16:16]} 1/2-1/2

[Variant "Standard"]
[Site "Europe Echecs"]

[Event "Championnat du monde jeunes U10"]
[Date "2024.11.26"]
[White "Aghoyan, Gevorg"]
[Black "Novac, Daniil"]
[WhiteElo "1682"]
[BlackElo "1594"]
[Round "11.12"]
[Result "1-0"]
[TimeControl "5400+30"]

1. e4 {[%clk 1:30:57]} 1... e5 {[%clk 1:30:53]} 2. Nf3 {[%clk 1:31:18]} 2... Nc6
{[%clk 1:31:16]} 3. d4 {[%clk 1:31:34]} 3... exd4 {[%clk 1:31:19]} 4. Nxd4
{[%clk 1:31:54]} 4... Bc5 {[%clk 1:28:52]} 5. Nb3 {[%clk 1:31:13]} 5... Bb6
{[%clk 1:29:10]} 6. Nc3 {[%clk 1:31:26]} 6... d6 {[%clk 1:28:17]} 7. Qe2 {[%clk
1:30:14]} 7... Nge7 {[%clk 1:20:30]} 8. Be3 {[%clk 1:27:31]} 8... O-O {[%clk
1:18:50]} 9. O-O-O {[%clk 1:26:45]} 9... Ne5 {[%clk 1:17:27]} 10. f3 {[%clk
1:25:13]} 10... Be6 {[%clk 1:12:54]} 11. g4 {[%clk 1:17:08]} 11... Nc4 {[%clk
1:05:46]} 12. Bf2 {[%clk 1:09:53]} 12... a5 {[%clk 0:59:07]} 13. Na4 {[%clk
1:04:01]} 13... Bxf2 {[%clk 0:57:41]} 14. Qxf2 {[%clk 1:02:59]} 14... b5 {[%clk
0:56:49]} 15. Nac5 {[%clk 1:00:07]} 15... a4 {[%clk 0:55:13]} 16. Nxe6 {[%clk
0:49:15]} 16... fxe6 {[%clk 0:55:30]} 17. Nd4 {[%clk 0:45:08]} 17... Qd7 {[%clk
0:48:11]} 18. a3 {[%clk 0:40:31]} 18... c5 {[%clk 0:45:13]} 19. Ne2 {[%clk
0:36:55]} 19... Ne5 {[%clk 0:41:49]} 20. Qg3 {[%clk 0:32:38]} 20... N7c6 {[%clk
0:36:52]} 21. f4 {[%clk 0:28:28]} 21... Nf7 {[%clk 0:36:22]} 22. g5 {[%clk
0:24:04]} 22... g6 {[%clk 0:33:33]} 23. h4 {[%clk 0:19:31]} 23... b4 {[%clk
0:33:16]} 24. h5 {[%clk 0:18:43]} 24... Kg7 {[%clk 0:31:49]} 25. hxg6 {[%clk
0:15:51]} 25... hxg6 {[%clk 0:31:52]} 26. Bg2 {[%clk 0:14:33]} 26... Rac8 {[%clk
0:30:02]} 27. Rh2 {[%clk 0:11:57]} 27... Rh8 {[%clk 0:28:36]} 28. Rdh1 {[%clk
0:11:34]} 28... bxa3 {[%clk 0:24:34]} 29. Qxa3 {[%clk 0:10:14]} 29... Nd4 {[%clk
0:23:53]} 30. Nxd4 {[%clk 0:08:08]} 30... cxd4 {[%clk 0:24:06]} 31. Qd3 {[%clk
0:08:20]} 31... Rxh2 {[%clk 0:23:41]} 32. Rxh2 {[%clk 0:08:44]} 32... Qc7 {[%clk
0:21:03]} 33. Bh3 {[%clk 0:06:40]} 33... d5 {[%clk 0:18:59]} 34. Qxd4+ {[%clk
0:05:24]} 34... e5 {[%clk 0:18:27]} 35. fxe5 {[%clk 0:05:18]} 35... Rb8 {[%clk
0:15:52]} 36. e6+ {[%clk 0:05:00]} 36... Kf8 {[%clk 0:16:02]} 37. Rf2 {[%clk
0:04:54]} 37... a3 {[%clk 0:15:33]} 38. Rxf7+ {[%clk 0:04:58]} 38... Qxf7 {[%clk
0:15:49]} 39. exf7 {[%clk 0:05:11]} 39... axb2+ {[%clk 0:15:50]} 40. Kb1 {[%clk
0:05:10]} 1-0

[Variant "Standard"]
[Site "Europe Echecs"]

[Event "Championnat du monde jeunes U10"]
[Date "2024.11.26"]
[White "Czech, Emil"]
[Black "Della Penna, Leonardo"]
[WhiteElo "1608"]
[BlackElo "1675"]
[Round "11.13"]
[Result "1/2-1/2"]
[TimeControl "5400+30"]

1. e4 {[%clk 1:30:59]} 1... c5 {[%clk 1:30:49]} 2. Nf3 {[%clk 1:31:20]} 2... d6
{[%clk 1:31:08]} 3. d4 {[%clk 1:31:43]} 3... cxd4 {[%clk 1:31:32]} 4. Qxd4
{[%clk 1:32:04]} 4... Nc6 {[%clk 1:31:45]} 5. Qe3 {[%clk 1:32:28]} 5... g6
{[%clk 1:30:33]} 6. Be2 {[%clk 1:32:47]} 6... Bg7 {[%clk 1:30:17]} 7. O-O {[%clk
1:32:59]} 7... Nf6 {[%clk 1:29:57]} 8. h3 {[%clk 1:33:22]} 8... O-O {[%clk
1:29:04]} 9. Rd1 {[%clk 1:33:48]} 9... Be6 {[%clk 1:24:55]} 10. c4 {[%clk
1:33:44]} 10... Nd7 {[%clk 1:22:45]} 11. Nc3 {[%clk 1:33:59]} 11... Qb6 {[%clk
1:20:46]} 12. Qf4 {[%clk 1:32:42]} 12... Nde5 {[%clk 1:18:35]} 13. Nd5 {[%clk
1:16:40]} 13... Bxd5 {[%clk 1:09:10]} 14. exd5 {[%clk 1:16:25]} 14... Nxf3+
{[%clk 1:07:59]} 15. Bxf3 {[%clk 1:16:16]} 15... Ne5 {[%clk 1:06:24]} 16. Be2
{[%clk 1:09:09]} 16... Rac8 {[%clk 1:01:14]} 17. Rd2 {[%clk 0:54:37]} 17... Qb4
{[%clk 0:47:01]} 18. Rc2 {[%clk 0:44:09]} 18... b5 {[%clk 0:39:01]} 19. Bd2
{[%clk 0:42:52]} 19... Qc5 {[%clk 0:38:58]} 20. Rac1 {[%clk 0:41:43]} 20... bxc4
{[%clk 0:36:25]} 21. Bxc4 {[%clk 0:41:41]} 21... Qb6 {[%clk 0:35:28]} 22. Be2
{[%clk 0:35:11]} 22... Qb7 {[%clk 0:33:39]} 23. Qa4 {[%clk 0:32:17]} 23... Rxc2
{[%clk 0:32:12]} 24. Rxc2 {[%clk 0:32:35]} 24... e6 {[%clk 0:23:32]} 25. f4
{[%clk 0:24:17]} 25... Nd7 {[%clk 0:23:37]} 26. Qc6 {[%clk 0:23:49]} 26... Qb6+
{[%clk 0:22:00]} 27. Qxb6 {[%clk 0:21:40]} 27... Nxb6 {[%clk 0:21:52]} 28. dxe6
{[%clk 0:21:13]} 28... fxe6 {[%clk 0:21:47]} 29. Rc6 {[%clk 0:19:49]} 29... Bd4+
{[%clk 0:21:50]} 30. Kh2 {[%clk 0:19:46]} 30... Rd8 {[%clk 0:20:51]} 31. Ba5
{[%clk 0:19:25]} 31... Be3 {[%clk 0:17:46]} 32. g3 {[%clk 0:18:16]} 1/2-1/2

[Variant "Standard"]
[Site "Europe Echecs"]

[Event "Championnat du monde jeunes U10"]
[Date "2024.11.26"]
[White "Gim, Hajin"]
[Black "Golya, David"]
[WhiteElo "1603"]
[BlackElo "1672"]
[Round "11.14"]
[Result "0-1"]
[TimeControl "5400+30"]

1. e4 {[%clk 1:30:30]} 1... c5 {[%clk 1:30:30]} 2. Nc3 {[%clk 1:30:30]} 2... Nc6
{[%clk 1:30:30]} 3. Bb5 {[%clk 1:30:30]} 3... g6 {[%clk 1:30:30]} 4. Bxc6 {[%clk
1:30:30]} 4... bxc6 {[%clk 1:30:30]} 5. f4 {[%clk 1:30:30]} 5... e6 {[%clk
1:30:30]} 6. Nf3 {[%clk 1:30:30]} 6... Bg7 {[%clk 1:30:30]} 7. d3 {[%clk
1:30:30]} 7... d5 {[%clk 1:30:30]} 8. O-O {[%clk 1:30:30]} 8... Ne7 {[%clk
1:30:30]} 9. Qe1 {[%clk 1:30:30]} 9... Ba6 {[%clk 1:30:30]} 10. Qh4 {[%clk
1:30:30]} 10... Bxc3 {[%clk 1:30:30]} 11. bxc3 {[%clk 1:30:30]} 11... dxe4
{[%clk 1:30:30]} 12. Qf6 {[%clk 1:30:30]} 12... O-O {[%clk 1:30:30]} 13. Ne5
{[%clk 1:30:30]} 13... Rc8 {[%clk 1:30:30]} 14. Ba3 {[%clk 1:30:30]} 14... Nd5
{[%clk 1:30:30]} 15. Qxd8 {[%clk 1:30:30]} 15... Rfxd8 {[%clk 1:16:57]} 16. Bxc5
Nxc3 {[%clk 1:16:02]} 17. Bxa7 {[%clk 1:32:49]} 17... exd3 {[%clk 1:16:06]} 18.
cxd3 {[%clk 1:32:45]} 18... Bxd3 {[%clk 1:15:32]} 19. Rf3 {[%clk 1:32:36]} 19...
Ne2+ {[%clk 1:15:36]} 20. Kf2 {[%clk 1:32:42]} 20... Bb5 {[%clk 1:15:25]} 21. a4
{[%clk 1:32:40]} 21... Ba6 {[%clk 1:15:37]} 22. Bb6 {[%clk 1:32:37]} 22... Rd2
{[%clk 1:13:16]} 23. Ke1 {[%clk 1:30:47]} 23... Rb2 {[%clk 1:13:28]} 24. Ba5
{[%clk 1:30:25]} 24... Nd4 {[%clk 1:12:30]} 25. Rf2 {[%clk 1:28:58]} 25... Nc2+
{[%clk 1:12:36]} 26. Kd1 {[%clk 1:29:06]} 26... Ne3+ {[%clk 1:12:59]} 27. Ke1
{[%clk 1:29:05]} 27... Nxg2+ {[%clk 1:13:21]} 28. Rxg2 {[%clk 1:29:19]} 28...
Rxg2 {[%clk 1:13:44]} 29. Nf3 {[%clk 1:29:19]} 29... Rb8 {[%clk 1:13:29]} 30.
Rd1 {[%clk 1:28:23]} 30... Re2+ {[%clk 1:13:50]} 31. Kf1 {[%clk 1:28:34]} 31...
Re5+ {[%clk 1:14:11]} 32. Kf2 {[%clk 1:28:47]} 32... Rxa5 {[%clk 1:14:34]} 0-1

[Variant "Standard"]
[Site "Europe Echecs"]